fUSD/lending_fUSD_20250708
["ID","MTS","AMOUNT","RATE_DAILY","PERIOD"]
[370343261,1751971832306,-17584.25,0.00025518,2]
[370343263,1751971832316,-1267.77,0.00025528,2]
[370343265,1751971832325,-1267.77,0.00025541,2]
[370343267,1751971832335,-1267.77,0.00025554,2]
[370343269,1751971832344,-1267.77,0.00025568,2]
[370343271,1751971832353,-1267.77,0.00025581,2]
[370343273,1751971832362,-1267.77,0.00025595,2]
[370343275,1751971832371,-1267.77,0.00025608,2]
[370343277,1751971832381,-150.0,0.00025619,2]
[370343279,1751971832390,-150.0,0.00025619,2]
[370343281,1751971832400,-150.0,0.00025619,2]
[370343283,1751971832410,-150.0,0.00025619,2]
[370343285,1751971832419,-150.0,0.00025619,2]
[370343287,1751971832428,-150.0,0.00025619,2]
[370343289,1751971832438,-150.0,0.00025619,2]
[370343291,1751971832448,-150.86844955,0.00025619,2]
[370343293,1751971832457,-150.0,0.00025619,2]
[370343295,1751971832466,-150.71576459,0.00025619,2]
[370343297,1751971832476,-150.35429664,0.00025619,2]
[370343299,1751971832486,-150.58604695,0.00025619,2]
[370343301,1751971832495,-150.0,0.00025619,2]
[370343303,1751971832504,-1267.77,0.00025621,2]
[370343305,1751971832513,-1267.77,0.00025635,2]
[370343307,1751971832522,-1267.77,0.00025648,2]
[370343309,1751971832532,-1267.77,0.00025662,2]
[370343311,1751971832541,-1267.77,0.00025675,2]
[370343313,1751971832551,-1267.77,0.00025688,2]
[370343315,1751971832560,-718.66551453,0.00025702,2]
[370343318,1751971832596,-460.09838307,0.00025472,2]
[370343319,1751971832606,-549.10448547,0.00025702,2]
[370343320,1751971832615,-250.0,0.00025714,2]
[370343321,1751971832625,-705.14615963,0.00025715,2]
[370343322,1751971832649,-562.62384037,0.00025715,2]
[370343323,1751971832659,-344.1,0.00025746,2]
[370343324,1751971832668,-200.0,0.00025778,7]
[370343325,1751971832677,-3357.4,0.00025898,2]
[370343326,1751971832686,-814.45267287,0.00026003,14]
[370343327,1751971832695,-2351.0,0.00026115,2]
[370343328,1751971832704,-262.27,0.00026124,2]
[370343330,1751971832714,-262.27,0.00026125,2]
[370343332,1751971832724,-3529.08329458,0.00026127,2]
[370343334,1751971832733,-177.70310261,0.00026127,2]
[370343336,1751971832742,-500.0,0.00026134,2]
[370343337,1751971832752,-327.72757675,0.00026134,2]
[370343338,1751971832762,-500.0,0.00026134,2]
[370343339,1751971832771,-423.84076342,0.00026134,2]
[370343340,1751971832782,-500.0,0.00026134,2]
[370343341,1751971832792,-500.0,0.00026134,2]
[370343342,1751971832801,-500.0,0.00026134,2]
[370343343,1751971832810,-500.0,0.00026134,2]
[370343344,1751971832820,-500.0,0.00026134,2]
[370343345,1751971832831,-500.0,0.00026134,2]
[370343346,1751971832840,-646.06914259,0.00026134,2]
[370343347,1751971832850,-500.0,0.00026134,2]
[370343348,1751971832859,-500.0,0.00026134,2]
[370343349,1751971832869,-500.0,0.00026134,2]
[370343350,1751971832878,-500.0,0.00026134,2]
[370343351,1751971832888,-500.0,0.00026134,2]
[370343352,1751971832897,-500.0,0.00026134,2]
[370343353,1751971832906,-500.0,0.00026134,2]
[370343354,1751971832915,-500.0,0.00026134,2]
[370343355,1751971832925,-500.0,0.00026134,2]
[370343356,1751971832935,-500.0,0.00026134,2]
[370343357,1751971832945,-500.0,0.00026134,2]
[370343358,1751971832956,-500.0,0.00026134,2]
[370343359,1751971832966,-212.36576681,0.00026134,2]
[370343360,1751971832976,-500.0,0.00026134,2]
[370343361,1751971832986,-500.0,0.00026134,2]
[370343362,1751971832995,-500.0,0.00026134,2]
[370343363,1751971833006,-500.0,0.00026134,2]
[370343364,1751971833016,-500.0,0.00026134,2]
[370343365,1751971833026,-500.0,0.00026134,2]
[370343366,1751971833042,-30920.23436349,0.00026135,2]
[370343367,1751971833055,-413.70893993,0.00026135,2]
[370343369,1751971837455,-460.09838307,0.00025643,2]
[370343370,1751971837464,-10450.90161693,0.00026135,2]
[370343371,1751971837480,-718.11831662,0.00026135,2]
[370343372,1751971837508,-2863.00710465,0.00026135,2]
[370343373,1751971837520,-809.62467155,0.00026135,2]
[370343374,1751971837533,-12453.8436716,0.00026135,2]
[370343375,1751971837548,-8355.461751,0.00026135,2]
[370343376,1751971837562,-10183.04956423,0.00026135,2]
[370343377,1751971837571,-1193.2,0.00026227,2]
[370343378,1751971837581,-262.27,0.00026282,2]
[370343379,1751971837591,-14408.3967205,0.00026292,2]
[370343380,1751971837601,-9961.67453927,0.00026302,2]
[370343381,1751971837612,-588.57891618,0.00026302,2]
[370343382,1751971837670,-365.08959461,0.00026302,2]
[370343383,1751971837681,-814.60478105,0.00026302,2]
[370343385,1751971837731,-12170.05216889,0.00026302,2]
[370343387,1751971837740,-157.94,0.00026344,2]
[370343389,1751971837750,-3529.08329453,0.00026382,2]
[370343391,1751971837759,-189.1,0.00026429,2]
[370343393,1751971837768,-1000.0,0.0002652,2]
[370343394,1751971837779,-814.45267287,0.00026521,15]
[370343396,1751971837789,-200.0,0.00026531,2]
[370343398,1751971837798,-3529.08329453,0.00026637,2]
[370343400,1751971837807,-207.4,0.00026639,2]
[370343402,1751971837816,-527.24332654,0.00026639,2]
[370343404,1751971837826,-300.0,0.00026639,2]
[370343406,1751971837836,-179.73,0.00026645,2]
[370343408,1751971837845,-262.27,0.00026683,2]
[370343410,1751971837854,-150.0,0.00026693,2]
[370343412,1751971837863,-12995.28,0.00026693,2]
[370343414,1751971837872,-500.0,0.00026753,2]
[370343416,1751971837881,-3141.45,0.00026762,2]
[370343418,1751971837890,-14408.3967205,0.00026776,2]
[370343420,1751971837900,-167.24,0.00026776,2]
[370343422,1751971837909,-4371.70125417,0.00026786,2]
[370343424,1751971837918,-191.39013794,0.00026786,2]
[370343426,1751971837927,-302.1373,0.00026787,2]
[370343428,1751971837937,-8224.5893,0.00026787,2]
[370343430,1751971837946,-1000.0,0.00026787,2]
[370343432,1751971837955,-2500.0,0.00026787,2]
[370343434,1751971837965,-160.0,0.0002682,2]
[370343436,1751971837975,-86450.3803231,0.00026877,2]
[370343438,1751971837984,-178387.94,0.00026887,7]
[370343440,1751971837993,-14408.3967205,0.0002689,2]
[370343442,1751971838003,-3529.08329453,0.00026892,2]
[370343444,1751971838013,-300.0,0.000269,9]
[370343446,1751971838022,-200.0,0.000269,2]
[370343448,1751971838031,-4371.70125413,0.00026936,2]
[370343450,1751971838045,-523.0,0.00026937,6]
[370343452,1751971838055,-1000.0,0.00027,9]
[370343454,1751971838064,-1000.0,0.00027,9]
[370343456,1751971838074,-1000.0,0.00027,8]
[370343458,1751971838084,-1000.0,0.00027,8]
[370343460,1751971838094,-1000.0,0.00027,7]
[370343462,1751971838102,-1000.0,0.00027,7]
[370343464,1751971838112,-1000.0,0.00027,7]
[370343466,1751971838122,-400.71339939,0.00027,2]
[370343468,1751971838131,-3984.0,0.00027,2]
[370343470,1751971838141,-168.0,0.0002703,2]
[370343472,1751971838150,-814.45267287,0.00027038,16]
[370343474,1751971838159,-168.0,0.00027045,2]
[370343476,1751971838169,-4371.70125413,0.00027087,2]
[370343478,1751971838179,-297.121704,0.00027146,8]
[370343480,1751971838188,-3529.08329453,0.00027147,2]
[370343482,1751971838198,-1218.0,0.00027155,2]
[370343484,1751971838207,-191.39013786,0.00027167,2]
[370343486,1751971838216,-14408.3967205,0.00027227,2]
[370343488,1751971838225,-4371.70125413,0.00027237,2]
[370343490,1751971838235,-150.0,0.00027271,2]
[370343492,1751971838244,-168.0,0.00027294,7]
[370343494,1751971838253,-1218.0,0.00027303,2]
[370343496,1751971838262,-100858.777044,0.00027387,2]
[370343498,1751971838271,-106535.968748,0.00027387,2]
[370343500,1751971838280,-254.06743358,0.00027387,2]
[370343502,1751971838290,-4371.70125413,0.00027387,2]
[370343504,1751971838299,-226.60793957,0.00027389,2]
[370343506,1751971838308,-460.0,0.00027397,3]
[370343508,1751971838317,-460.0,0.00027397,3]
[370343510,1751971838326,-531.47,0.00027397,3]
[370343512,1751971838336,-500.0,0.00027397,3]
[370343514,1751971838345,-460.0,0.00027397,3]
[370343516,1751971838354,-460.0,0.00027397,3]
[370343518,1751971838363,-1570.8,0.00027397,3]
[370343520,1751971838372,-460.0,0.00027397,3]
[370343522,1751971838381,-460.0,0.00027397,3]
[370343524,1751971838391,-460.0,0.00027397,3]
[370343526,1751971838400,-460.0,0.00027397,3]
[370343528,1751971838409,-460.0,0.00027397,3]
[370343530,1751971838419,-460.0,0.00027397,3]
[370343532,1751971838428,-460.0,0.00027397,3]
[370343534,1751971838437,-460.0,0.00027397,3]
[370343536,1751971838446,-460.0,0.00027397,3]
[370343537,1751971838455,-460.0,0.00027397,3]
[370343539,1751971838464,-460.0,0.00027397,3]
[370343541,1751971838474,-460.0,0.00027397,3]
[370343543,1751971838483,-460.0,0.00027397,3]
[370343545,1751971838492,-460.0,0.00027397,3]
[370343547,1751971838501,-460.0,0.00027397,3]
[370343549,1751971838511,-460.0,0.00027397,3]
[370343551,1751971838520,-460.0,0.00027397,3]
[370343553,1751971838529,-476.55,0.00027397,3]
[370343555,1751971838538,-460.0,0.00027397,3]
[370343557,1751971838547,-460.0,0.00027397,3]
[370343559,1751971838557,-460.0,0.00027397,3]
[370343561,1751971838567,-460.0,0.00027397,3]
[370343563,1751971838576,-460.0,0.00027397,3]
[370343565,1751971838586,-1267.14,0.00027397,3]
[370343567,1751971838595,-460.0,0.00027397,3]
[370343569,1751971838604,-497.09366896,0.00027397,3]
[370343571,1751971838614,-460.0,0.00027397,3]
[370343573,1751971838624,-460.0,0.00027397,3]
[370343575,1751971838633,-308.18465661,0.00027397,3]
[370343577,1751971838642,-605.34,0.00027397,3]
[370343579,1751971838651,-460.0,0.00027397,3]
[370343605,1751971838935,-408.20010585,0.00027397,3]
[370343606,1751971838945,-778.66,0.00027397,3]
[370343607,1751971838955,-460.0,0.00027397,3]
[370343608,1751971838965,-230.03935164,0.00027397,3]
[370343609,1751971838974,-1480.71,0.00027397,3]
[370343610,1751971838983,-460.0,0.00027397,3]
[370343611,1751971838993,-460.0,0.00027397,3]
[370343613,1751971839003,-460.0,0.00027397,3]
[370343615,1751971839012,-1000.0,0.00027397,3]
[370343617,1751971839022,-460.0,0.00027397,3]
[370343619,1751971839031,-586.64,0.00027397,3]
[370343621,1751971839045,-460.0,0.00027397,3]
[370343623,1751971839055,-460.0,0.00027397,3]
[370343625,1751971839064,-1111.31,0.00027397,3]
[370343627,1751971839074,-970.947582,0.00027397,3]
[370343629,1751971839083,-153.090645,0.00027397,3]
[370343631,1751971839093,-159.840877,0.00027397,3]
[370343633,1751971839102,-160.733287,0.00027397,3]
[370343635,1751971839112,-1053.985662,0.00027397,3]
[370343637,1751971839122,-462.90929933,0.00027397,3]
[370343639,1751971839132,-531.98,0.00027397,3]
[370343641,1751971839142,-1100.951878,0.00027397,3]
[370343643,1751971839152,-460.0,0.00027397,3]
[370343645,1751971839162,-621.52,0.00027397,3]
[370343647,1751971839172,-460.0,0.00027397,3]
[370343649,1751971839182,-491.27654619,0.00027397,3]
[370343651,1751971839191,-567.67,0.00027397,3]
[370343653,1751971839201,-460.0,0.00027397,3]
[370343655,1751971839210,-460.0,0.00027397,3]
[370343657,1751971839219,-460.0,0.00027397,3]
[370343659,1751971839229,-544.91,0.00027397,3]
[370343661,1751971839239,-746.18,0.00027397,3]
[370343663,1751971839249,-460.0,0.00027397,3]
[370343665,1751971839258,-460.0,0.00027397,3]
[370343667,1751971839268,-499.34838492,0.00027397,3]
[370343669,1751971839277,-460.0,0.00027397,3]
[370343671,1751971839287,-460.0,0.00027397,3]
[370343673,1751971839296,-460.0,0.00027397,3]
[370343675,1751971839306,-460.0,0.00027397,3]
[370343677,1751971839315,-460.0,0.00027397,3]
[370343679,1751971839325,-594.21,0.00027397,3]
[370343681,1751971839335,-460.0,0.00027397,3]
[370343683,1751971839344,-460.0,0.00027397,3]
[370343685,1751971839353,-460.0,0.00027397,3]
[370343687,1751971839363,-494.92502122,0.00027397,3]
[370343689,1751971839372,-153.090648,0.00027397,3]
[370343691,1751971839382,-460.0,0.00027397,3]
[370343693,1751971839391,-672.43,0.00027397,3]
[370343695,1751971839401,-460.0,0.00027397,3]
[370343697,1751971839411,-594.99,0.00027397,3]
[370343699,1751971839420,-165.914756,0.00027397,3]
[370343701,1751971839429,-539.37658457,0.00027397,3]
[370343703,1751971839439,-460.0,0.00027397,3]
[370343705,1751971839448,-460.0,0.00027397,3]
[370343707,1751971839457,-460.0,0.00027397,3]
[370343709,1751971839467,-460.0,0.00027397,3]
[370343711,1751971839477,-460.0,0.00027397,3]
[370343714,1751971839486,-1967.14,0.00027397,3]
[370343717,1751971839496,-460.0,0.00027397,3]
[370343720,1751971839505,-460.0,0.00027397,3]
[370343723,1751971839515,-523.06,0.00027397,3]
[370343726,1751971839524,-460.0,0.00027397,3]
[370343729,1751971839534,-502.43909253,0.00027397,3]
[370343732,1751971839543,-460.0,0.00027397,3]
[370343735,1751971839553,-460.0,0.00027397,3]
[370343738,1751971839562,-460.0,0.00027397,3]
[370343741,1751971839572,-460.0,0.00027397,3]
[370343744,1751971839581,-490.10258306,0.00027397,3]
[370343747,1751971839591,-529.46,0.00027397,3]
[370343749,1751971839601,-529.46,0.00027397,3]
[370343752,1751971839610,-460.0,0.00027397,3]
[370343755,1751971839619,-460.0,0.00027397,3]
[370343757,1751971839628,-158.1365174,0.00027397,3]
[370343759,1751971839637,-460.0,0.00027397,3]
[370343761,1751971839646,-460.0,0.00027397,3]
[370343763,1751971839656,-163.072734,0.00027397,3]
[370343765,1751971839665,-460.0,0.00027397,3]
[370343767,1751971839674,-170.640262,0.00027397,3]
[370343769,1751971839684,-491.17,0.00027397,3]
[370343771,1751971839693,-470.7,0.00027397,3]
[370343773,1751971839702,-161.950167,0.00027397,3]
[370343775,1751971839711,-499.45258764,0.00027397,3]
[370343777,1751971839720,-1261.77,0.00027397,3]
[370343779,1751971839729,-460.0,0.00027397,3]
[370343781,1751971839739,-461.69343051,0.00027397,3]
[370343783,1751971839748,-170.32893239,0.00027397,3]
[370343785,1751971839757,-460.0,0.00027397,3]
[370343787,1751971839766,-460.0,0.00027397,3]
[370343789,1751971839776,-703.07,0.00027397,3]
[370343791,1751971839784,-500.0,0.00027397,3]
[370343793,1751971839794,-460.0,0.00027397,3]
[370343795,1751971839804,-460.0,0.00027397,3]
[370343797,1751971839813,-460.0,0.00027397,3]
[370343799,1751971839823,-460.0,0.00027397,3]
[370343801,1751971839832,-460.0,0.00027397,3]
[370343802,1751971839843,-460.0,0.00027397,3]
[370343804,1751971839852,-460.0,0.00027397,3]
[370343806,1751971839861,-460.0,0.00027397,3]
[370343808,1751971839870,-547.21,0.00027397,3]
[370343810,1751971839879,-500.0,0.00027397,3]
[370343812,1751971839889,-500.0,0.00027397,3]
[370343814,1751971839898,-460.0,0.00027397,3]
[370343816,1751971839907,-460.0,0.00027397,3]
[370343818,1751971839916,-460.0,0.00027397,3]
[370343820,1751971839925,-460.0,0.00027397,3]
[370343822,1751971839935,-460.0,0.00027397,3]
[370343824,1751971839944,-460.0,0.00027397,3]
[370343826,1751971839953,-460.0,0.00027397,3]
[370343828,1751971839962,-460.0,0.00027397,3]
[370343830,1751971839971,-460.0,0.00027397,3]
[370343832,1751971839981,-460.0,0.00027397,3]
[370343834,1751971839990,-460.0,0.00027397,3]
[370343836,1751971840000,-460.0,0.00027397,3]
[370343838,1751971840009,-460.0,0.00027397,3]
[370343840,1751971840019,-460.0,0.00027397,3]
[370343842,1751971840029,-460.0,0.00027397,3]
[370343844,1751971840041,-520.0,0.00027397,3]
[370343847,1751971840054,-460.0,0.00027397,3]
[370343849,1751971840063,-460.0,0.00027397,3]
[370343850,1751971840073,-460.0,0.00027397,3]
[370343852,1751971840082,-517.22,0.00027397,3]
[370343854,1751971840092,-460.0,0.00027397,3]
[370343856,1751971840102,-460.0,0.00027397,3]
[370343858,1751971840114,-460.0,0.00027397,3]
[370343860,1751971840123,-460.0,0.00027397,3]
[370343862,1751971840132,-240.91103304,0.00027397,3]
[370343864,1751971840142,-460.0,0.00027397,3]
[370343866,1751971840151,-460.0,0.00027397,3]
[370343868,1751971840161,-460.0,0.00027397,3]
[370343870,1751971840171,-460.0,0.00027397,3]
[370343872,1751971840180,-460.0,0.00027397,3]
[370343874,1751971840190,-460.0,0.00027397,3]
[370343876,1751971840200,-460.0,0.00027397,3]
[370343878,1751971840209,-460.0,0.00027397,3]
[370343880,1751971840219,-460.0,0.00027397,3]
[370343882,1751971840228,-460.0,0.00027397,3]
[370343884,1751971840237,-460.0,0.00027397,3]
[370343886,1751971840247,-667.6,0.00027397,3]
[370343888,1751971840256,-460.0,0.00027397,3]
[370343890,1751971840266,-460.0,0.00027397,3]
[370343892,1751971840275,-460.0,0.00027397,3]
[370343894,1751971840285,-1225.13,0.00027397,3]
[370343896,1751971840294,-460.0,0.00027397,3]
[370343898,1751971840303,-460.0,0.00027397,3]
[370343900,1751971840312,-173.532953,0.00027397,3]
[370343902,1751971840321,-460.0,0.00027397,3]
[370343904,1751971840330,-460.0,0.00027397,3]
[370343906,1751971840341,-460.0,0.00027397,3]
[370343908,1751971840350,-460.0,0.00027397,3]
[370343910,1751971840359,-460.0,0.00027397,3]
[370343912,1751971840369,-460.0,0.00027397,3]
[370343914,1751971840378,-1509.84,0.00027397,3]
[370343916,1751971840387,-491.39062638,0.00027397,3]
[370343918,1751971840397,-460.0,0.00027397,3]
[370343920,1751971840406,-460.0,0.00027397,3]
[370343922,1751971840416,-460.0,0.00027397,3]
[370343924,1751971840425,-460.0,0.00027397,3]
[370343926,1751971840435,-460.0,0.00027397,3]
[370343928,1751971840444,-460.0,0.00027397,3]
[370343930,1751971840453,-460.0,0.00027397,3]
[370343932,1751971840463,-461.55090387,0.00027397,3]
[370343934,1751971840472,-460.0,0.00027397,3]
[370343936,1751971840483,-460.0,0.00027397,3]
[370343938,1751971840492,-633.11,0.00027397,3]
[370343940,1751971840502,-612.7,0.00027397,3]
[370343942,1751971840513,-6852.19,0.00027397,3]
[370343944,1751971840522,-460.0,0.00027397,3]
[370343946,1751971840532,-151.75934839,0.00027397,3]
[370343948,1751971840541,-460.0,0.00027397,3]
[370343950,1751971840550,-460.0,0.00027397,3]
[370343952,1751971840560,-460.0,0.00027397,3]
[370343954,1751971840569,-460.0,0.00027397,3]
[370343956,1751971840578,-460.0,0.00027397,3]
[370343958,1751971840588,-460.0,0.00027397,3]
[370343960,1751971840597,-460.0,0.00027397,3]
[370343962,1751971840607,-460.0,0.00027397,3]
[370343964,1751971840616,-460.0,0.00027397,3]
[370343966,1751971840626,-460.0,0.00027397,3]
[370343968,1751971840635,-504.59,0.00027397,3]
[370343970,1751971840644,-460.0,0.00027397,3]
[370343972,1751971840653,-491.25527125,0.00027397,3]
[370343974,1751971840663,-460.0,0.00027397,3]
[370343976,1751971840672,-1356.88,0.00027397,3]
[370343978,1751971840681,-639.49,0.00027397,3]
[370343980,1751971840691,-460.0,0.00027397,3]
[370343982,1751971840700,-460.0,0.00027397,3]
[370343984,1751971840710,-2281.61,0.00027397,3]
[370343986,1751971840719,-1020.67,0.00027397,3]
[370343988,1751971840728,-471.62,0.00027397,3]
[370343990,1751971840739,-460.0,0.00027397,3]
[370343992,1751971840748,-460.0,0.00027397,3]
[370343994,1751971840757,-460.0,0.00027397,3]
[370343996,1751971840767,-1050.99,0.00027397,3]
[370343998,1751971840777,-501.22,0.00027397,3]
[370344000,1751971840786,-460.0,0.00027397,3]
[370344002,1751971840795,-490.0,0.00027397,3]
[370344003,1751971840805,-460.0,0.00027397,3]
[370344005,1751971840814,-460.0,0.00027397,3]
[370344008,1751971840825,-3034.18,0.00027397,3]
[370344010,1751971840835,-460.0,0.00027397,3]
[370344011,1751971840844,-460.0,0.00027397,3]
[370344013,1751971840853,-327.50002768,0.00027397,3]
[370344015,1751971840862,-460.0,0.00027397,3]
[370344017,1751971840872,-460.0,0.00027397,3]
[370344019,1751971840882,-460.0,0.00027397,3]
[370344021,1751971840891,-460.0,0.00027397,3]
[370344023,1751971840901,-460.0,0.00027397,3]
[370344025,1751971840911,-460.0,0.00027397,3]
[370344027,1751971840921,-460.0,0.00027397,3]
[370344029,1751971840930,-1335.86,0.00027397,3]
[370344031,1751971840939,-556.06,0.00027397,3]
[370344033,1751971840948,-435.51770781,0.00027397,3]
[370344035,1751971840958,-599.17,0.00027397,3]
[370344038,1751971840967,-460.0,0.00027397,3]
[370344039,1751971840977,-460.0,0.00027397,3]
[370344040,1751971840986,-460.0,0.00027397,3]
[370344041,1751971840995,-460.0,0.00027397,3]
[370344042,1751971841005,-873.84,0.00027397,3]
[370344043,1751971841015,-460.0,0.00027397,3]
[370344044,1751971841024,-216.7028759,0.00027397,3]
[370344045,1751971841035,-460.0,0.00027397,3]
[370344046,1751971841047,-460.0,0.00027397,3]
[370344047,1751971841056,-460.0,0.00027397,3]
[370344048,1751971841065,-365.20927507,0.00027397,3]
[370344050,1751971841074,-460.0,0.00027397,3]
[370344052,1751971841084,-460.0,0.00027397,3]
[370344054,1751971841094,-460.0,0.00027397,3]
[370344056,1751971841103,-2166.64,0.00027397,3]
[370344058,1751971841112,-460.0,0.00027397,3]
[370344060,1751971841121,-741.82,0.00027397,3]
[370344062,1751971841131,-460.0,0.00027397,3]
[370344064,1751971841140,-502.77,0.00027397,3]
[370344066,1751971841150,-552.57460248,0.00027397,3]
[370344068,1751971841159,-3213.61,0.00027397,3]
[370344070,1751971841168,-870.38,0.00027397,3]
[370344072,1751971841178,-524.39,0.00027397,3]
[370344074,1751971841187,-460.0,0.00027397,3]
[370344076,1751971841197,-460.0,0.00027397,3]
[370344078,1751971841206,-460.0,0.00027397,3]
[370344080,1751971841217,-1047.01,0.00027397,3]
[370344082,1751971841227,-460.0,0.00027397,3]
[370344084,1751971841236,-460.0,0.00027397,3]
[370344086,1751971841245,-527.48,0.00027397,3]
[370344088,1751971841254,-523.96484857,0.00027397,3]
[370344090,1751971841263,-460.0,0.00027397,3]
[370344092,1751971841272,-460.0,0.00027397,3]
[370344094,1751971841282,-626.99,0.00027397,3]
[370344096,1751971841291,-460.0,0.00027397,3]
[370344098,1751971841300,-460.0,0.00027397,3]
[370344100,1751971841309,-3898.8,0.00027397,3]
[370344102,1751971841319,-770.57,0.00027397,3]
[370344104,1751971841328,-460.0,0.00027397,3]
[370344106,1751971841338,-500.0,0.00027397,3]
[370344108,1751971841347,-625.36,0.00027397,3]
[370344110,1751971841355,-460.0,0.00027397,3]
[370344112,1751971841365,-460.0,0.00027397,3]
[370344114,1751971841374,-1142.32,0.00027397,3]
[370344116,1751971841383,-460.0,0.00027397,3]
[370344118,1751971841392,-1824.85,0.00027397,3]
[370344120,1751971841402,-460.0,0.00027397,3]
[370344122,1751971841411,-871.7,0.00027397,3]
[370344124,1751971841419,-460.0,0.00027397,3]
[370344126,1751971841429,-460.0,0.00027397,3]
[370344128,1751971841438,-1281.38,0.00027397,3]
[370344130,1751971841447,-460.0,0.00027397,3]
[370344132,1751971841457,-460.0,0.00027397,3]
[370344134,1751971841466,-631.72,0.00027397,3]
[370344136,1751971841475,-460.0,0.00027397,3]
[370344137,1751971841484,-460.0,0.00027397,3]
[370344139,1751971841494,-460.0,0.00027397,3]
[370344142,1751971841504,-600.0,0.00027397,2]
[370344144,1751971841513,-600.0,0.00027397,2]
[370344146,1751971841522,-460.0,0.00027397,3]
[370344147,1751971841531,-1584.72,0.00027397,3]
[370344150,1751971841541,-2260.19,0.00027397,3]
[370344152,1751971841550,-985.82,0.00027397,3]
[370344154,1751971841559,-460.0,0.00027397,3]
[370344156,1751971841569,-460.0,0.00027397,3]
[370344157,1751971841578,-460.0,0.00027397,3]
[370344159,1751971841587,-531.09,0.00027397,3]
[370344161,1751971841597,-460.0,0.00027397,3]
[370344163,1751971841606,-460.0,0.00027397,3]
[370344165,1751971841615,-460.0,0.00027397,3]
[370344167,1751971841624,-460.0,0.00027397,3]
[370344169,1751971841633,-639.73,0.00027397,3]
[370344171,1751971841643,-779.96,0.00027397,3]
[370344173,1751971841652,-460.0,0.00027397,3]
[370344175,1751971841661,-460.0,0.00027397,3]
[370344177,1751971841670,-460.0,0.00027397,3]
[370344179,1751971841680,-460.0,0.00027397,3]
[370344182,1751971841689,-460.0,0.00027397,3]
[370344183,1751971841699,-460.0,0.00027397,3]
[370344186,1751971841709,-460.0,0.00027397,3]
[370344187,1751971841718,-460.0,0.00027397,3]
[370344190,1751971841727,-460.0,0.00027397,3]
[370344192,1751971841737,-460.0,0.00027397,3]
[370344194,1751971841748,-1271.65,0.00027397,3]
[370344195,1751971841757,-574.49,0.00027397,3]
[370344197,1751971841766,-971.99,0.00027397,3]
[370344199,1751971841775,-2005.0,0.00027397,3]
[370344201,1751971841784,-460.0,0.00027397,3]
[370344203,1751971841793,-6473.36,0.00027397,3]
[370344205,1751971841803,-460.0,0.00027397,3]
[370344207,1751971841813,-460.0,0.00027397,3]
[370344209,1751971841823,-181.32114182,0.00027397,2]
[370344211,1751971841832,-460.0,0.00027397,3]
[370344213,1751971841842,-460.0,0.00027397,3]
[370344215,1751971841852,-460.0,0.00027397,3]
[370344217,1751971841861,-460.0,0.00027397,3]
[370344219,1751971841870,-460.0,0.00027397,3]
[370344221,1751971841879,-460.0,0.00027397,3]
[370344223,1751971841889,-460.0,0.00027397,3]